{"text_format":"1","workbook":"xlsx","n_sheets":7,"sheets":["OPTIMIST","LASER","NOVEL Y BENJAMIN","CLAS.OPT","CLAS.LASER","CTO LASER","CTO NAVARRO"],"not_rendered":{"charts":0,"images":1,"macros":0,"external_links":0,"defined_names":5,"comments":0,"pivot_tables":0},"unopened":[],"bounds":{"document_bytes":16777216,"sheet_cells":100000,"rows_first":2000,"rows_last":500,"rows_between":2000,"halvings":0,"cell_chars":16384,"cell_head_chars":4096},"cells_cut":0,"cells_raw":0,"read":"whole","date_system":"1900"}

{"sheet":"OPTIMIST","index":0,"n_rows":44,"n_cols":7,"rows_kept":44,"cut":false,"hidden":true,"merged":[[2,0,2,6],[3,0,3,6],[4,0,4,6]]}
[]
[]
["CAMPEONATO NAVARRO DE OPTIMIST Y LASER 2018"]
["V TROFEO ARITZALEKU 2018"]
["LISTADO DE PRE-INSCRITOS"]
[]
["Nº","NOMBRE","APELLIDOS","CLUB","CATEGORIA","Nº VELA","FECHA NACIMIENTO"]
[1,"NEREA","CERECEDA BASAÑEZ","CN ALDAYETA","OPTIMIST BENJAMIN",2469,2008]
[2,"UXUE","LENS","CNV","OPTIMIST ALEVIN",989,2006]
[3,"ENEKO ","SANCHEZ BASOCO","CNV","OPTIMIST ALEVIN",2468,2006]
[4,"LIA","AYERBE GOMEZ","CNV","OPTIMIST ALEVIN",827,2006]
[5,"MARTIN","SILVA MINGUELEZ","CNV","OPTIMIST ALEVIN",826,2007]
[6,"ANDER","VALPUESTA DEL BARRIO","CNV","OPTIMIST ALEVIN",417,2006]
[7,"MARKEL","PAJARO LAFUENTE","CNV","OPTIMIST BENJAMIN",99,2008]
[8,"JON","HERREO","CNV","OPTIMIST BENJAMIN",957,2008]
[9,"TELMO","AYERBE GOMEZ","CNV","OPTIMIST BENJAMIN",658,2009]
[10,"AITOR","IBORRA TORRE","CNV","OPTIMIST INFANTIL",828,2005]
[11,"IRATI","LITAGO JORDAN","CVN","OPTIMIST ALEVIN",73,2006]
[12,"JULIA","DEL VAL ZUÑIGA","CVN","OPTIMIST ALEVIN",260,2007]
[13,"ANDER","NOAIN BELLOSO","CVN","OPTIMIST INFANTIL",886,2005]
[14,"ENEKO","ZUBELDIA OCÁRIZ","CVN","OPTIMIST INFANTIL",2464,2005]
[15,"UNAI","RIESCO DELGADO","CVN","OPTIMIST INFANTIL",2764,2004]
[16,"LUCAS","PARRA SANZ","CVN","OPTIMIST INFANTIL",826,2004]
[17,"XUE","LIZARAZU MENDIVE","CVN","OPTIMIST INFANTIL",1777,2005]
[18,"MIGUEL","ROBLES LOPEZ","CVN","OPTIMIST INFANTIL",1309,2005]
[19,"PAUL","EMEZABAL","RCN SS","OPTIMIST ALEVIN",2476,2006]
[20,"JAN","ODRIOZOLA","RCN SS","OPTIMIST ALEVIN",null,2006]
[21,"NORA","ACHA","RCN SS","OPTIMIST ALEVIN",null,2006]
[22,"AITOR","EMEZABAL","RCN SS","OPTIMIST BENJAMIN",1519,2008]
[23,"ALEX ","DE LA MORENA","RCN SS","OPTIMIST BENJAMIN",1120,2008]
[24,"LUKA ","ARRIZABALAGA","RCN SS","OPTIMIST BENJAMIN",8,2008]
[25,"ANE","MADINA","RCN SS","OPTIMIST BENJAMIN",9,2008]
[26,"TELMO","GOIKOECHEA","RCN SS","OPTIMIST INFANTIL",667,2004]
[27,"BEÑAT","LOPEZ  ","RCN SS","OPTIMIST INFANTIL",2186,2004]
[28,"NORA","ARRESE-IGOR","RCN SS","OPTIMIST INFANTIL",2141,2005]
[29,"MARCOS","ARAUZO","RCN SS","OPTIMIST INFANTIL",89,2005]
[30,"OHIANE","GRAVALOS","RCN SS","OPTIMIST INFANTIL",null,2005]
[31,"MATEO","CARRAU","SANTANDER","OPTIMIST NOVEL",2183,2009]
[32,"CATALINA","ALONSO","SANTANDER","OPTIMIST NOVEL",1989,2008]
[33,"PIETRO","PERIOTTO","SANTANDER","OPTIMIST NOVEL",2405,2007]
[34,"TOMAS","BUDIÑO","SANTANDER","OPTIMIST NOVEL",16,2007]
[35,"JUAN","GOMEZ","SANTANDER","OPTIMIST NOVEL",650,2007]
[36,"OLIVIA","MARTÍNEZ","SANTANDER","OPTIMIST NOVEL",2084,2008]
[37,"BRAULIO","CARRASCO","SANTANDER","OPTIMIST NOVEL",7,2007]

{"sheet":"LASER","index":1,"n_rows":24,"n_cols":6,"rows_kept":24,"cut":false,"hidden":true,"merged":[[2,0,2,5],[3,0,3,5],[4,0,4,5]]}
[]
[]
["CAMPEONATO NAVARRO DE OPTIMIST Y LASER 2018"]
["V TROFEO ARITZALEKU 2018"]
["LISTADO DE PRE-INSCRITOS"]
[]
["Nº","NOMBRE","APELLIDOS","CLUB","CATEGORIA","Nº VELA"]
[1,"EDURNE","BERRUETA GAMBOA","RCN SS","RADIAL",178777]
[2,"OSKAR","HERNANDO OCHE","RCN SS","RADIAL",147065]
[3,"DANIEL","RODRIGUEZ GONZALEZ","CN ALDAYETA","LASER 4.7",88961]
[4,"ANDER","SÁNCHEZ BASOCO","CNV","LASER 4.7",212173]
[5,"IÑIGO","LENS BLASCO","CNV","LASER 4.7",180294]
[6,"OSCAR","LOPEZ URROZ","CVN","LASER 4.7",188288]
[7,"ELENA","RODRIGUEZ GONZALEZ","CN ALDAYETA","RADIAL",191939]
[8,"MIRENTXU","CERECEDA BASAÑEZ","CN ALDAYETA","RADIAL",63]
[9,"JON","BASAÑEZ MENDIALDUA","CN ALDAYETA","RADIAL",130335]
[10,"ASIER","ZUBIA REDONDO","CN ALDAYETA","RADIAL",176476]
[11,"EDURNE","FERNANDINO MARI","CN ALDAYETA","RADIAL",181396]
[12,"IKER","LIZARRALDE MOTA","CNV","RADIAL",195060]
[13,"IKER","IBORRA TORRE","CNV","RADIAL",198800]
[14,"OSCAR","ROBLES LOPEZ","CVN","RADIAL",174368]
[15,"ALVARO ","ESPUELAS ARANGUREN","CVN","RADIAL",191395]
[16,"BEÑAT","LIZASO BERROETA","RCN SS","LASER 4.7",178777]
[17,"DIEGO","MATE ","RCN SS","RADIAL",190560]

{"sheet":"NOVEL Y BENJAMIN","index":2,"n_rows":27,"n_cols":15,"rows_kept":27,"cut":false,"hidden":false,"merged":[[1,1,1,13],[2,1,2,13]]}
[]
[null,"VI TROFEO ARITZALEKU 2019"]
[null,"CLASE OPTIMIST NOVEL Y BENJAMIN"]
["Nº","NOMBRE","APELLIDOS","CLUB","CATEGORIA","Nº VELA","1ªMANGA","2ª MANGA","3ª MANGA","4ª MANGA",null,"5ª MANGA","6ª MANGA","TOTAL ","TOTAL 1 DESCARTE"]
[1,"HUGO","ESPINOSA FACI","CNH","BENJAMIN (SUB 11)",88,1,1,1,1,null,null,null,{"$f":"SUM(G5:M5)","v":4},{"$f":"SUM(G5:M5)-MAX(G5,H5,I5,J5,L5,M5)","v":3}]
[2,"EKHI","GONZALEZ IRIDOY","CNH","BENJAMIN (SUB 11)",579,7,5,2,2,null,null,null,16,9]
[3,"MIKELE","ORONOZ","CNH","NOVEL",14,4,2,7,6,null,null,null,19,12]
[4,"TELMO ","SANTOS","RCN SS","NOVEL",159,2,3,8,9,null,null,null,22,13]
[5,"MAURA","ETXARRI OTAEGI","CNH","NOVEL",10,3,14,4,8,null,null,null,29,15]
[6,"NECO","DEL CASTILLO VARELA","RCMS","NOVEL",1715,5,8,14,3,null,null,null,30,16]
[7,"LUIS","GONZÁLEZ RUIZ","RCMS","BENJAMIN (SUB 11)",257,6,9,5,5,null,null,null,25,16]
[8,"JOAQUIN","CAVERO FERNANDEZ-C","RCMS","NOVEL",2297,8,11,6,4,null,null,null,29,18]
[9,"DANIEL ","ROBLES LOPEZ","CV NAVARRA","NOVEL",12371,15,13,3,7,null,null,null,38,23]
[10,"EMMANUEL","MATIA ROYANO","RCMS","NOVEL",1370,17,4,9,13,null,null,null,43,26]
[11,"EIDER","RUIZ DE LARRAMENDI","CNH","BENJAMIN (SUB 11)",6,9,6,15,15,null,null,null,45,30]
[12,"OSCAR","VIDAL","CNH","NOVEL",7,22,7,13,12,null,null,null,54,32]
[13,"IÑIGO","LESAKA","RCN SS","NOVEL",1746,18,12,10,11,null,null,null,51,33]
[14,"MIKEL","MARTINEZ","RCN SS","NOVEL",946,20,10,11,16,null,null,null,57,37]
[15,"GUILLERMO ","CASTIELLA GARCIA BA","CV NAVARRA","NOVEL",12238,16,15,12,10,null,null,null,53,37]
[16,"JUNE","OLAZABAL SALABERRIA","CNH","NOVEL",5,10,16,16,14,null,null,null,56,40]
[17,"ANDER","RUIZ DE LARRAMENDI","CNH","NOVEL",2,12,19,20,17,null,null,null,68,48]
[18,"NAÑAP ","TAISH LOPEZ DE VICUÑA","CN VITORIA","BENJAMIN (SUB 11)",658,13,18,17,21,null,null,null,69,48]
[19,"IVAN","ARAUZO","RCN SS","NOVEL",81,11,23,18,24,"DNF",null,null,76,52]
[20,"OLATZ","ELIZASU GUILLEN","CNH","NOVEL",3,14,20,19,19,null,null,null,72,52]
[21,"AINA MARTINEZ RANCHAL","MARTINEZ RANCHAL","CNH","NOVEL",4,19,17,22,20,null,null,null,78,56]
[22,"MANUEL","BUDIÑO FERNÁNDEZ","RCMS","NOVEL",1727,21,21,21,18,null,null,null,81,60]
[23,"EDU ","AYESTARAN FERNANDEZ","CNH","NOVEL",1,23,22,23,24,"RET",null,null,92,68]

{"sheet":"CLAS.OPT","index":3,"n_rows":35,"n_cols":20,"rows_kept":35,"cut":false,"hidden":false,"merged":[[1,0,1,15],[2,0,2,15]]}
[]
["VI TROFEO ARITZALEKU 2019"]
["CLASE OPTIMIST"]
["Nº","NOMBRE","APELLIDOS","CLUB","CATEGORIA","Nº VELA","1ªMANGA",null,"2ª MANGA",null,"3ª MANGA",null,"4ª MANGA",null,"5ª MANGA",null,"6ª MANGA",null,"TOTAL ","TOTAL 1 DESCARTE"]
[1,"LOREA","ELDUAYEN VILA","CNH","ALEVIN (SUB 13)",309,1,null,null,null,null,null,null,null,null,null,null,null,{"$f":"G5+I5+K5+M5+O5+Q5","v":1},{"$f":"S5-MAX(G5,I5,K5,M5,O5,Q5)","v":0}]
[2,"LUMA ","ALTUBE FUSTE","CNH","ALEVIN (SUB 13)",1434,2,null,null,null,null,null,null,null,null,null,null,null,2,0]
[3,"PAUL","EMEZABAL","RCN SS","INFANTIL (SUB16)",2715,3,null,null,null,null,null,null,null,null,null,null,null,3,0]
[4,"MARTIN","SALABERRIA BASTIDA","CNH","INFANTIL (SUB16)",1932,4,null,null,null,null,null,null,null,null,null,null,null,4,0]
[5,"ALEX","AMUNARRIZ MURIEL","CNH","INFANTIL (SUB16)",2750,5,null,null,null,null,null,null,null,null,null,null,null,5,0]
[6,"ADRIANO","VAZQUEZ GARCIA","CNH","ALEVIN (SUB 13)",2799,6,null,null,null,null,null,null,null,null,null,null,null,6,0]
[7,"UNAI","RIESCO DELGADO","CV NAVARRA","INFANTIL (SUB16)",2764,7,null,null,null,null,null,null,null,null,null,null,null,7,0]
[8,"AINHOA","ABAD BASCARAN","CNH","INFANTIL (SUB16)",148,8,null,null,null,null,null,null,null,null,null,null,null,8,0]
[9,"NORA","ACHA","RCN SS","ALEVIN (SUB 13)",2890,9,null,null,null,null,null,null,null,null,null,null,null,9,0]
[10,"ANDER","NOAIN BELLOSO","CV NAVARRA","INFANTIL (SUB16)",886,10,null,null,null,null,null,null,null,null,null,null,null,10,0]
[11,"JON","HERRERMO BENITO","CN VITORIA","ALEVIN (SUB 13)",957,11,null,null,null,null,null,null,null,null,null,null,null,11,0]
[12,"XUE","LIZARAZU MENDIVE","CV NAVARRA","INFANTIL (SUB16)",1777,12,null,null,null,null,null,null,null,null,null,null,null,12,0]
[13,"IÑIGO","AMUNARRIZ RECALDE","CNH","INFANTIL (SUB16)",1931,13,null,null,null,null,null,null,null,null,null,null,null,13,0]
[14,"ALEX","GARCIA LLORDES","CNH","INFANTIL (SUB16)",1164,14,null,null,null,null,null,null,null,null,null,null,null,14,0]
[15,"MARKEL ENDIKA","PAJARO LAFUENTE","CN VITORIA","ALEVIN (SUB 13)",6,15,null,null,null,null,null,null,null,null,null,null,null,15,0]
[16,"LIA","AYERBE GOMEZ","CN VITORIA","INFANTIL (SUB16)",77,16,null,null,null,null,null,null,null,null,null,null,null,16,0]
[17,"AITOR","EMEZABAL","RCN SS","ALEVIN (SUB 13)",2476,17,null,null,null,null,null,null,null,null,null,null,null,17,0]
[18,"TELMO ","AYERBE GOMEZ","CN VITORIA","ALEVIN (SUB 13)",53,18,null,null,null,null,null,null,null,null,null,null,null,18,0]
[19,"MARTIN","SILVA MIGUELEZ","CN VITORIA","INFANTIL (SUB16)",8,19,null,null,null,null,null,null,null,null,null,null,null,19,0]
[20,"ANDER","VALPUESTA DEL BARRIO","CN VITORIA","INFANTIL (SUB16)",417,20,null,null,null,null,null,null,null,null,null,null,null,20,0]
[21,"ANE","MADINA","RCN SS","ALEVIN (SUB 13)",666,21,null,null,null,null,null,null,null,null,null,null,null,21,0]
[22,"JULIA","DEL VAL ZUÑIGA","CV NAVARRA","ALEVIN (SUB 13)",418,22,null,null,null,null,null,null,null,null,null,null,null,22,0]
[23,"UXUE","LENS BLASCO","CN VITORIA","INFANTIL (SUB16)",238,23,null,null,null,null,null,null,null,null,null,null,null,23,0]
[24,"ALAIN ","ARSUAGA ITURRALDE","CNH","ALEVIN (SUB 13)",777,24,null,null,null,null,null,null,null,null,null,null,null,24,0]
[25,"LUKA ","ARRIZABALAGA","RCN SS","ALEVIN (SUB 13)",1102,25,null,null,null,null,null,null,null,null,null,null,null,25,0]
[26,"MARTIN","GARCIA LLORDES","CNH","ALEVIN (SUB 13)",15,26,null,null,null,null,null,null,null,null,null,null,null,26,0]
[27,"ION","ANCISAR ECHEVERRIA","CNH","ALEVIN (SUB 13)",515,32,"DNC",null,null,null,null,null,null,null,null,null,null,32,0]
[28,"MARCO","ESPINOSA AYASTUY","CNH","INFANTIL (SUB16)",1436,32,"DNC",null,null,null,null,null,null,null,null,null,null,32,0]
[29,"ENEKO","ZUBELDIA OCÁRIZ","CV NAVARRA","INFANTIL (SUB16)",2464,32,"OCS",null,null,null,null,null,null,null,null,null,null,32,0]
[30,"JAVIER","ZAPIAIN BUSTO","CNH","INFANTIL (SUB16)",2835,32,"OCS",null,null,null,null,null,null,null,null,null,null,32,0]
[31,"MIGUEL","ROBLES LOPEZ","CV NAVARRA","INFANTIL (SUB16)",173,32,"RET",null,null,null,null,null,null,null,null,null,null,32,0]

{"sheet":"CLAS.LASER","index":4,"n_rows":25,"n_cols":20,"rows_kept":25,"cut":false,"hidden":false,"merged":[[1,0,1,14],[2,0,2,14]]}
[]
["VI TROFEO ARITZALEKU 2019"]
["CLASE LASER 4.7 Y CLASE LASER RADIAL"]
["Nº","NOMBRE","APELLIDOS","CLUB","CATEGORIA","Nº VELA","1ªMANGA",null,"2ª MANGA",null,"3ª MANGA",null,"4ª MANGA",null,"5ª MANGA",null,"6ª MANGA",null,"TOTAL ","TOTAL 1 DESCARTE"]
[1,"EDURNE","FERNANDINO MARI","CV NAVARRA","LASER RADIAL",181396,1,null,3,null,null,null,null,null,null,null,null,null,{"$f":"G5+I5+K5+M5+O5+Q5","v":4},{"$f":"S5-MAX(G5,I5,K5,M5,O5,Q5)","v":1}]
[2,"JON","BASAÑEZ MENDIALDUA","CN ALAVA","LASER RADIAL",214070,2,null,2,null,null,null,null,null,null,null,null,null,4,{"$f":"S6-MAX(G6,I6,K6,M6,O6,Q6)","v":2}]
[3,"BEÑAT","LIZASO","RCN SS","LASER RADIAL",178777,6,null,1,null,null,null,null,null,null,null,null,null,7,{"$f":"S7-MAX(G7,I7,K7,M7,O7,Q7)","v":1}]
[4,"OSKAR","HERNANDO","RCN SS","LASER RADIAL",147065,3,null,4,null,null,null,null,null,null,null,null,null,7,3]
[5,"IKER","IBORRA TORRE","CN VITORIA","LASER RADIAL",198800,4,null,5,null,null,null,null,null,null,null,null,null,9,4]
[6,"JOSE LUIS","AYESTARAN","CNH","LASER RADIAL",95315,5,null,6,null,null,null,null,null,null,null,null,null,11,5]
[7,"ASIER","ZUBIA REDONDO","CN ALAVA","LASER RADIAL",176476,7,null,7,null,null,null,null,null,null,null,null,null,14,{"$f":"S11-MAX(G11,I11,K11,M11,O11,Q11)","v":7}]
[8,"ANTXON","MADINA","CV NAVARRA","LASER RADIAL",172717,9,null,8,null,null,null,null,null,null,null,null,null,17,8]
[9,"ALVARO ","ESPUELAS ARANGUREN","CV NAVARRA","LASER RADIAL",172196,8,null,10,"dnc",null,null,null,null,null,null,null,null,18]
[]
["Nº","NOMBRE","APELLIDOS","CLUB","CATEGORIA","Nº VELA","1ªMANGA",null,"2ª MANGA",null,"3ª MANGA",null,"4ª MANGA",null,"5ª MANGA",null,"6ª MANGA",null,"TOTAL ","TOTAL 1 DESCARTE"]
[1,"OSCAR","LOPEZ URROZ","CV NAVARRA","LASER 4.7",188288,1,null,1,null,null,null,null,null,null,null,null,null,{"$f":"G16+I16+K16+M16+O16+Q16","v":2},{"$f":"S16-MAX(G16,I16,K16,M16,O16,Q16)","v":1}]
[3,"SAIOA","BELZUNCE LOPEZ","CV NAVARRA","LASER 4.7",203554,3,null,2,null,null,null,null,null,null,null,null,null,5,{"$f":"S17-MAX(G17,I17,K17,M17,O17,Q17)","v":2}]
[4,"LUCAS","PARRA SANZ","CV NAVARRA","LASER 4.7",198724,4,null,3,null,null,null,null,null,null,null,null,null,7,3]
[2,"TELMO","GOIKOECHEA","RCN SS","LASER 4.7",194293,2,null,6,null,null,null,null,null,null,null,null,null,8,2]
[7,"JUAN","ERASO BELZUNCE","CV NAVARRA","LASER 4.7",205754,7,null,4,null,null,null,null,null,null,null,null,null,11,4]
[5,"AITOR","IBORRA TORRE","CN VITORIA","LASER 4.7",20163,5,null,7,null,null,null,null,null,null,null,null,null,12,5]
[8,"BEATRIZ","ERASO BELZUNCE","CV NAVARRA","LASER 4.7",188888,8,null,5,null,null,null,null,null,null,null,null,null,13,{"$f":"S22-MAX(G22,I22,K22,M22,O22,Q22)","v":5}]
[6,"IÑIGO","LENS BLASCO","CN VITORIA","LASER 4.7",180294,6,null,8,null,null,null,null,null,null,null,null,null,14,{"$f":"S23-MAX(G23,I23,K23,M23,O23,Q23)","v":6}]
[9,"MANEZ","ALBISU URKIZU","CNH","LASER 4.7",11,11,"OCS",11,"DNC",null,null,null,null,null,null,null,null,22,{"$f":"S24-MAX(G24,I24,K24,M24,O24,Q24)","v":11}]
[10,"MALENA","VALLEJO NAVAL","CNH","LASER 4.7",1,11,"DNC",11,"DNC",null,null,null,null,null,null,null,null,22,11]

{"sheet":"CTO LASER","index":5,"n_rows":16,"n_cols":18,"rows_kept":16,"cut":false,"hidden":false,"merged":[[1,1,1,6],[10,1,10,6]]}
[]
[null,"CTO NAVARRO LASER  4,7 2019"]
[]
["Nº","NOMBRE","APELLIDOS","CLUB","Nº VELA","1ªMANGA",null,"2ª MANGA",null,"3ªMANGA",null,"4! MANGA",null,"5ª MANGA",null,"6ª MANGA",null,"TOTAL "]
[1,"OSCAR","LOPEZ URROZ","CV NAVARRA",188288,1,null,1,null,null,null,null,null,null,null,null,null,{"$f":"F5+H5+J5+L5+N5+P5","v":2}]
[2,"SAIOA","BELZUNCE LOPEZ","CV NAVARRA",203554,2,null,2,null,null,null,null,null,null,null,null,null,{"$f":"F6+H6+J6+L6+N6+P6","v":4}]
[3,"LUCAS","PARRA SANZ","CV NAVARRA",198724,3,null,3,null,null,null,null,null,null,null,null,null,{"$f":"F7+H7+J7+L7+N7+P7","v":6}]
[4,"JUAN","ERASO BELZUNCE","CV NAVARRA",205754,4,null,4,null,null,null,null,null,null,null,null,null,{"$f":"F8+H8+J8+L8+N8+P8","v":8}]
[5,"BEATRIZ","ERASO BELZUNCE","CV NAVARRA",188888,5,null,5,null,null,null,null,null,null,null,null,null,{"$f":"F9+H9+J9+L9+N9+P9","v":10}]
[]
[null,"CTO NAVARRO LASER  RADIAL 2019"]
[]
["Nº","NOMBRE","APELLIDOS","CLUB","Nº VELA","1ªMANGA",null,"2ª MANGA",null,"3ªMANGA",null,"4! MANGA",null,"5ª MANGA",null,"6ª MANGA",null,"TOTAL "]
[1,"EDURNE","FERNANDINO MARI","CV NAVARRA",181396,1,null,1,null,null,null,null,null,null,null,null,null,{"$f":"F14+H14+J14+L14+N14+P14","v":2}]
[2,"ANTXON","MADINA","CV NAVARRA",172717,3,null,2,null,null,null,null,null,null,null,null,null,{"$f":"F15+H15+J15+L15+N15+P15","v":5}]
[3,"ALVARO ","ESPUELAS ARANGUREN","CV NAVARRA",172196,2,null,3,null,null,null,null,null,null,null,null,null,{"$f":"F16+H16+J16+L16+N16+P16","v":5}]

{"sheet":"CTO NAVARRO","index":6,"n_rows":12,"n_cols":6,"rows_kept":12,"cut":false,"hidden":false,"merged":[[1,0,1,5],[2,0,2,5]]}
[]
["CAMPEONATO NAVARRO 2019"]
["CLASE OPTIMIST"]
["Nº","NOMBRE","APELLIDOS","CLUB","Nº VELA","1ªMANGA"]
[1,"UNAI","RIESCO DELGADO","CV NAVARRA","INFANTIL (SUB16)",2764]
[2,"ANDER","NOAIN BELLOSO","CV NAVARRA","INFANTIL (SUB16)",886]
[3,"XUE","LIZARAZU MENDIVE","CV NAVARRA","INFANTIL (SUB16)",1777]
[4,"JULIA","DEL VAL ZUÑIGA","CV NAVARRA","ALEVIN (SUB 13)",418]
[5,"ENEKO","ZUBELDIA OCÁRIZ","CV NAVARRA","INFANTIL (SUB16)",2464]
[6,"MIGUEL","ROBLES LOPEZ","CV NAVARRA","INFANTIL (SUB16)",173]
[7,"DANIEL ","ROBLES LOPEZ","CV NAVARRA","NOVEL",12371]
[8,"GUILLERMO ","CASTIELLA GARCIA BA","CV NAVARRA","NOVEL",12238]